fUSD/lending_fUSD_20260528
["ID","MTS","AMOUNT","RATE_DAILY","PERIOD"]
[423217919,1779941438000,-589.58375036,0.00018761,2]
[423217921,1779941438000,-348.76648356,0.00018761,2]
[423217887,1779941438000,-279.49867771,0.0001739,2]
[423217923,1779941438000,-372.2331068,0.00018761,2]
[423217918,1779941438000,-320.25700141,0.00018761,2]
[423217906,1779941438000,-513.0626051,0.00018355,2]
[423217920,1779941438000,-562.9028902,0.00018761,2]
[423217908,1779941438000,-24090.82869567,0.00018356,2]
[423217891,1779941438000,-250.0,0.00017636,2]
[423217894,1779941438000,-185.56715711,0.00018,2]
[423217893,1779941438000,-166.66,0.00017786,2]
[423217899,1779941438000,-418.35,0.0001819,2]
[423217898,1779941438000,-166.66,0.00018131,2]
[423217896,1779941438000,-200.0,0.0001805,2]
[423217903,1779941438000,-156.09958753,0.00018355,2]
[423217895,1779941438000,-172.92773901,0.00018,2]
[423217902,1779941438000,-152.18,0.00018331,2]
[423217900,1779941438000,-172.92773901,0.000182,2]
[423217907,1779941438000,-7056.74130433,0.00018356,2]
[423217905,1779941438000,-519.87963854,0.00018355,2]
[423217909,1779941438000,-1000.0,0.00018359,2]
[423217897,1779941438000,-500.0,0.0001805,2]
[423217901,1779941438000,-420.0,0.00018268,2]
[423217904,1779941438000,-152.04322732,0.00018355,2]
[423217953,1779941439000,-561.2969038,0.00019799,2]
[423217932,1779941439000,-418.35,0.00019078,2]
[423217936,1779941439000,-1699.72576411,0.00019543,2]
[423217938,1779941439000,-300.27423589,0.00019543,2]
[423217945,1779941439000,-1555.6943786,0.00019629,2]
[423217947,1779941439000,-4435.5532812,0.00019629,2]
[423217949,1779941439000,-3677.32780526,0.00019629,2]
[423217951,1779941439000,-152.18,0.00019741,2]
[423217934,1779941439000,-418.35,0.00019521,2]
[423217940,1779941439000,-3195.49616551,0.00019629,2]
[423217955,1779941439000,-364.23,0.00019799,2]
[423217961,1779941439000,-305.48556239,0.000198,2]
[423217959,1779941439000,-928.08842823,0.00019799,2]
[423217964,1779941439000,-2527.28622367,0.000198,2]
[423217971,1779941439000,-752.76997313,0.000198,2]
[423217969,1779941439000,-1386.34858037,0.000198,2]
[423217966,1779941439000,-358.1589143,0.000198,2]
[423217977,1779941439000,613.37405483,0.00014437,2]
[423217943,1779941439000,-284.79302514,0.00019629,2]
[423218202,1779941440000,-151.0,0.0002,2]
[423218198,1779941440000,-155.0,0.0002,2]
[423218196,1779941440000,-583.0,0.0002,2]
[423218188,1779941440000,-146727.9589,0.000199,2]
[423218192,1779941440000,-942.0,0.0002,2]
[423218190,1779941440000,-587.0,0.00019958,2]
[423218178,1779941440000,-25740.21606451,0.000198,2]
[423218200,1779941440000,-469.0,0.0002,2]
[423218182,1779941440000,-500.0,0.00019899,2]
[423218180,1779941440000,-1747.01100411,0.00019858,2]
[423218176,1779941440000,-2920.0,0.000198,2]
[423218141,1779941440000,-806.48695215,0.000198,2]
[423218143,1779941440000,-1054.16012948,0.000198,2]
[423218186,1779941440000,-500.0,0.00019899,2]
[423218194,1779941440000,-181.0,0.0002,2]
[423218184,1779941440000,-500.0,0.00019899,2]
[423218204,1779941440000,-1056.0,0.0002,2]
[423218214,1779941440000,-181.0,0.00021,2]
[423218230,1779941440000,-152.18,0.00021152,2]
[423218220,1779941440000,-469.0,0.00021,2]
[423218222,1779941440000,-151.0,0.00021,2]
[423218224,1779941440000,-1056.0,0.00021,2]
[423218234,1779941440000,-22898.43,0.00021787,2]
[423218236,1779941440000,-823.0,0.00021805,2]
[423218226,1779941440000,-160.0,0.00021,2]
[423218232,1779941440000,-2000.0,0.00021715,2]
[423218218,1779941440000,-162.0,0.00021,2]
[423218210,1779941440000,-1083.4,0.00020381,2]
[423218216,1779941440000,-583.0,0.00021,2]
[423218212,1779941440000,-942.0,0.00021,2]
[423218208,1779941440000,-29595.68,0.0002,2]
[423218228,1779941440000,-372.5877802,0.00021024,2]
[423218206,1779941440000,-160.0,0.0002,2]
[423218320,1779941441000,-500.0,0.00022256,2]
[423218312,1779941441000,-151.0,0.00022256,2]
[423218310,1779941441000,-151.0,0.00022256,2]
[423218307,1779941441000,-500.0,0.00022256,2]
[423218318,1779941441000,-151.0,0.00022256,2]
[423218304,1779941441000,-151.0,0.00022256,2]
[423218305,1779941441000,-151.0,0.00022256,2]
[423218302,1779941441000,-500.0,0.00022256,2]
[423218299,1779941441000,-151.0,0.00022256,2]
[423218297,1779941441000,-151.0,0.00022256,2]
[423218314,1779941441000,-500.0,0.00022256,2]
[423218316,1779941441000,-151.0,0.00022256,2]
[423218321,1779941441000,-151.0,0.00022256,2]
[423218338,1779941441000,-500.0,0.00022256,2]
[423218325,1779941441000,-500.0,0.00022256,2]
[423218327,1779941441000,-151.0,0.00022256,2]
[423218330,1779941441000,-151.0,0.00022256,2]
[423218336,1779941441000,-151.0,0.00022256,2]
[423218332,1779941441000,-151.0,0.00022256,2]
[423218334,1779941441000,-500.0,0.00022256,2]
[423218295,1779941441000,-500.0,0.00022256,2]
[423218346,1779941441000,-500.0,0.00022411,7]
[423218342,1779941441000,-500.0,0.00022256,2]
[423218340,1779941441000,-151.0,0.00022256,2]
[423218344,1779941441000,-1083.4,0.00022353,2]
[423218349,1779941441000,-500.0,0.00022411,7]
[423218351,1779941441000,-152.18,0.00022562,2]
[423218364,1779941441000,-943.92,0.00022718,2]
[423218323,1779941441000,-151.0,0.00022256,2]
[423218293,1779941441000,-151.0,0.00022256,2]
[423218279,1779941441000,-151.0,0.00022256,2]
[423218283,1779941441000,-151.0,0.00022256,2]
[423218372,1779941441000,-943.92,0.0002272,2]
[423218238,1779941441000,-5000.0,0.00021918,2]
[423218240,1779941441000,-1853.61533197,0.00021994,2]
[423218242,1779941441000,-942.0,0.00022,2]
[423218244,1779941441000,-181.0,0.00022,2]
[423218246,1779941441000,-583.0,0.00022,2]
[423218250,1779941441000,-158.0,0.00022,2]
[423218248,1779941441000,-469.0,0.00022,2]
[423218259,1779941441000,-200.0,0.00022256,2]
[423218261,1779941441000,-519.44720242,0.00022256,2]
[423218252,1779941441000,-1056.0,0.00022,2]
[423218263,1779941441000,-151.0,0.00022256,2]
[423218258,1779941441000,-151.0,0.00022256,2]
[423218284,1779941441000,-151.0,0.00022256,2]
[423218269,1779941441000,-151.0,0.00022256,2]
[423218267,1779941441000,-151.0,0.00022256,2]
[423218256,1779941441000,-163.9,0.0002211,2]
[423218254,1779941441000,-160.0,0.00022,2]
[423218271,1779941441000,-151.0,0.00022256,2]
[423218273,1779941441000,-2080.17592889,0.00022256,2]
[423218286,1779941441000,-151.0,0.00022256,2]
[423218275,1779941441000,-151.0,0.00022256,2]
[423218277,1779941441000,-151.0,0.00022256,2]
[423218291,1779941441000,-151.0,0.00022256,2]
[423218290,1779941441000,-500.0,0.00022256,2]
[423218288,1779941441000,-151.0,0.00022256,2]
[423218281,1779941441000,-151.0,0.00022256,2]
[423218285,1779941441000,-500.0,0.00022256,2]
[423218265,1779941441000,-151.0,0.00022256,2]
[423218366,1779941441000,-943.92,0.00022718,2]
[423218463,1779941441000,-1083.4,0.00024324,2]
[423218353,1779941441000,-1747.01100406,0.00022672,2]
[423218431,1779941441000,-6763.99,0.00023573,2]
[423218433,1779941441000,-2632.391475,0.00023623,2]
[423218443,1779941441000,-2319.72410669,0.000239,2]
[423218435,1779941441000,-500.0,0.00023644,2]
[423218448,1779941441000,-181.0,0.00024,2]
[423218441,1779941441000,-200.0,0.000239,2]
[423218439,1779941441000,-2000.0,0.00023886,2]
[423218437,1779941441000,-1152.0,0.00023822,2]
[423218452,1779941441000,-469.0,0.00024,2]
[423218450,1779941441000,-583.0,0.00024,2]
[423218445,1779941441000,-942.0,0.00024,2]
[423218453,1779941441000,-1056.0,0.00024,2]
[423218358,1779941441000,-500.0,0.00022685,7]
[423218429,1779941441000,-2236.95670847,0.00023352,2]
[423218471,1779941441000,-500.0,0.00024384,7]
[423218467,1779941441000,-500.0,0.00024384,7]
[423218454,1779941441000,-160.0,0.00024,2]
[423218465,1779941441000,-500.0,0.00024384,7]
[423218469,1779941441000,-240.75815228,0.00024384,7]
[423218461,1779941441000,-256.0,0.000243,5]
[423218475,1779941441000,-200.0,0.00024448,2]
[423218477,1779941441000,-2405.55389863,0.00024448,2]
[423218473,1779941441000,-448.0,0.00024384,7]
[423218482,1779941441000,-507.96,0.00024658,2]
[423218488,1779941441000,-161.0,0.00024658,2]
[423218484,1779941441000,-1000.0,0.00024658,2]
[423218480,1779941441000,-1051.32,0.00024453,2]
[423218486,1779941441000,-500.0,0.00024658,7]
[423218458,1779941441000,-1853.61533197,0.00024189,2]
[423218427,1779941441000,-200.0,0.00023352,2]
[423218457,1779941441000,-4288.29,0.00024174,2]
[423218412,1779941441000,-1356.0,0.0002312,2]
[423218418,1779941441000,-1225.0,0.0002326,2]
[423218362,1779941441000,-500.0,0.00022685,7]
[423218355,1779941441000,-500.0,0.00022685,7]
[423218360,1779941441000,-500.0,0.00022685,7]
[423218375,1779941441000,-943.89,0.00022722,2]
[423218368,1779941441000,-943.92,0.0002272,2]
[423218385,1779941441000,-942.0,0.00023,2]
[423218387,1779941441000,-181.0,0.00023,2]
[423218377,1779941441000,-943.92,0.00022722,2]
[423218381,1779941441000,-200.0,0.00022804,2]
[423218379,1779941441000,-943.92,0.00022722,2]
[423218383,1779941441000,-2157.14243826,0.00022804,2]
[423218389,1779941441000,-583.0,0.00023,2]
[423218393,1779941441000,-1056.0,0.00023,2]
[423218370,1779941441000,-943.92,0.0002272,2]
[423218391,1779941441000,-469.0,0.00023,2]
[423218395,1779941441000,-160.0,0.00023,2]
[423218425,1779941441000,-3637.0,0.00023341,2]
[423218420,1779941441000,-418.0,0.00023341,2]
[423218411,1779941441000,-150.0,0.0002312,2]
[423218416,1779941441000,-1272.0,0.0002326,2]
[423218408,1779941441000,-150.458,0.0002312,2]
[423218414,1779941441000,-928.0,0.0002326,2]
[423218404,1779941441000,-150.0,0.0002312,2]
[423218402,1779941441000,-150.359,0.0002312,2]
[423218399,1779941441000,-150.549,0.0002312,2]
[423218397,1779941441000,-289.487,0.0002312,2]
[423218401,1779941441000,-150.0,0.0002312,2]
[423218407,1779941441000,-167.235,0.0002312,2]
[423218590,1779941442000,-1225.0,0.0002626,2]
[423218571,1779941442000,-503.0,0.000261,2]
[423218561,1779941442000,-500.0,0.00026028,7]
[423218573,1779941442000,-150.0,0.0002612,2]
[423218575,1779941442000,-150.0,0.0002612,2]
[423218563,1779941442000,-2000.0,0.00026058,2]
[423218567,1779941442000,-445.80495749,0.000261,2]
[423218559,1779941442000,-172.98,0.00026027,7]
[423218565,1779941442000,-2682.57183977,0.00026092,2]
[423218588,1779941442000,-1272.0,0.0002626,2]
[423218557,1779941442000,-721.0,0.00026027,2]
[423218569,1779941442000,-5014.0,0.000261,2]
[423218592,1779941442000,-1083.4,0.00026296,2]
[423218599,1779941442000,-1853.61533197,0.00026384,2]
[423218577,1779941442000,-150.0,0.0002612,2]
[423218579,1779941442000,-150.0,0.0002612,2]
[423218581,1779941442000,-150.0,0.0002612,2]
[423218584,1779941442000,-1354.11585035,0.00026155,4]
[423218597,1779941442000,-3637.0,0.00026341,2]
[423218586,1779941442000,-928.0,0.0002626,2]
[423218601,1779941442000,-4538.0,0.00026457,5]
[423218615,1779941442000,-805.7852065,0.00026891,2]
[423218617,1779941442000,-372.2331068,0.00026891,2]
[423218555,1779941442000,-504.0,0.00026013,2]
[423218621,1779941442000,-3303.958067,0.00027,2]
[423218619,1779941442000,-504.0,0.00026944,3]
[423218603,1779941442000,-255.67,0.00026488,2]
[423218594,1779941442000,-418.0,0.00026341,2]
[423218553,1779941442000,-500.0,0.00026,2]
[423218493,1779941442000,-1026.27634001,0.0002475,2]
[423218537,1779941442000,-10618.88800289,0.000256,2]
[423218623,1779941442000,-2000.0,0.00027,2]
[423218498,1779941442000,-200.0,0.00024996,2]
[423218495,1779941442000,-1265.19385396,0.0002475,2]
[423218491,1779941442000,-162.37,0.00024658,2]
[423218500,1779941442000,-2494.55939288,0.00024996,2]
[423218502,1779941442000,-26570.46012914,0.00025,2]
[423218505,1779941442000,-945.37617276,0.00025,2]
[423218507,1779941442000,-181.92725443,0.00025,2]
[423218509,1779941442000,-588.41842051,0.00025,2]
[423218517,1779941442000,-374.81,0.00025,2]
[423218511,1779941442000,-482.21566303,0.00025,2]
[423218513,1779941442000,-1061.54553,0.00025,2]
[423218524,1779941442000,-504.0,0.00025082,2]
[423218548,1779941442000,-609.99350778,0.0002599,2]
[423218526,1779941442000,-161.0,0.00025278,7]
[423218515,1779941442000,-160.52004076,0.00025,2]
[423218528,1779941442000,-162.37,0.00025278,7]
[423218545,1779941442000,-161.0,0.00025898,30]
[423218549,1779941442000,-4591.64384435,0.00026,2]
[423218534,1779941442000,-2586.85809042,0.00025544,2]
[423218530,1779941442000,-1747.01100406,0.00025485,2]
[423218532,1779941442000,-213.54315359,0.00025544,2]
[423218543,1779941442000,-4288.29,0.00025786,2]
[423218550,1779941442000,-219.76345652,0.00026,2]
[423218551,1779941442000,-550.0,0.00026,2]
[423218541,1779941442000,-206.84,0.00025774,2]
[423218547,1779941442000,-162.37,0.00025898,30]
[423218539,1779941442000,-155.36,0.0002564,2]
[423218522,1779941442000,-7974.9935,0.0002502,2]
[423218605,1779941442000,-8420.1533264,0.00026545,2]
[423218520,1779941442000,-374.81,0.00025,2]
[423218613,1779941442000,-562.9028902,0.00026891,2]
[423218687,1779941442000,-471.09,0.00027712,7]
[423218695,1779941442000,-200.0,0.00027784,2]
[423218689,1779941442000,-209.40437684,0.00027784,2]
[423218691,1779941442000,-174.61919141,0.00027784,2]
[423218697,1779941442000,-151.0,0.00027784,2]
[423218693,1779941442000,-578.20924308,0.00027784,2]
[423218696,1779941442000,-5391.81600768,0.00027784,2]
[423218694,1779941442000,-1428.38747117,0.00027784,2]
[423218688,1779941442000,-151.0,0.00027784,2]
[423218692,1779941442000,-743.50770149,0.00027784,2]
[423218690,1779941442000,-279.9045709,0.00027784,2]
[423218699,1779941442000,-693.39197629,0.00027784,2]
[423218711,1779941442000,-152.0,0.00027784,2]
[423218683,1779941442000,-233.54,0.00027712,7]
[423218715,1779941442000,-152.0,0.00027784,2]
[423218700,1779941442000,-152.0,0.00027784,2]
[423218724,1779941442000,-719.04747942,0.00027839,2]
[423218705,1779941442000,-152.0,0.00027784,2]
[423218717,1779941442000,-152.0,0.00027784,2]
[423218702,1779941442000,-152.0,0.00027784,2]
[423218703,1779941442000,-152.0,0.00027784,2]
[423218706,1779941442000,-180.86370417,0.00027784,2]
[423218704,1779941442000,-152.0,0.00027784,2]
[423218701,1779941442000,-209.40437684,0.00027784,2]
[423218721,1779941442000,-5591.31319997,0.00027839,2]
[423218723,1779941442000,-151.0,0.00027839,2]
[423218719,1779941442000,-152.0,0.00027784,2]
[423218609,1779941442000,-2781.82699784,0.0002664,2]
[423218713,1779941442000,-152.0,0.00027784,2]
[423218685,1779941442000,-338.12,0.00027712,7]
[423218709,1779941442000,-152.0,0.00027784,2]
[423218672,1779941442000,-171.73,0.00027695,7]
[423218680,1779941442000,-472.86,0.00027712,7]
[423218611,1779941442000,-3576.5449307,0.00026891,2]
[423218625,1779941442000,-456.95111606,0.00027118,2]
[423218627,1779941442000,-1127.76427492,0.00027188,2]
[423218631,1779941442000,-248.12491381,0.00027303,2]
[423218633,1779941442000,-4178.98740951,0.0002739,2]
[423218635,1779941442000,-8255.73588221,0.0002739,2]
[423218639,1779941442000,-1500.0,0.00027397,2]
[423218637,1779941442000,-242.23266696,0.00027397,7]
[423218629,1779941442000,-180.84321921,0.000273,30]
[423218641,1779941442000,-198.55,0.00027397,8]
[423218643,1779941442000,-507.96,0.00027397,2]
[423218645,1779941442000,-300.0,0.00027397,2]
[423218653,1779941442000,-150.0,0.00027521,2]
[423218607,1779941442000,-432.1314599,0.00026545,2]
[423218651,1779941442000,-500.0,0.00027398,7]
[423218647,1779941442000,-1467.8,0.00027397,2]
[423218666,1779941442000,-233.54,0.00027551,30]
[423218678,1779941442000,-338.95,0.00027712,7]
[423218670,1779941442000,-471.09,0.00027551,30]
[423218662,1779941442000,-338.95,0.00027551,30]
[423218668,1779941442000,-338.12,0.00027551,30]
[423218676,1779941442000,-235.9,0.00027712,7]
[423218660,1779941442000,-235.9,0.00027551,30]
[423218664,1779941442000,-472.86,0.00027551,30]
[423218658,1779941442000,-173.19,0.0002755,2]
[423218655,1779941442000,-171.73,0.0002755,2]
[423218649,1779941442000,-5034.98,0.00027397,10]
[423218674,1779941442000,-173.19,0.00027695,7]
[423218778,1779941443000,-235.9,0.00028195,7]
[423218774,1779941443000,-173.21,0.0002813,7]
[423218777,1779941443000,-151.0,0.00028169,2]
[423218764,1779941443000,-302.46,0.00028082,2]
[423218760,1779941443000,-831.51979762,0.00028059,2]
[423218766,1779941443000,-6705.13617038,0.00028114,2]
[423218772,1779941443000,-171.75,0.0002813,7]
[423218765,1779941443000,-356.61535055,0.00028082,2]
[423218763,1779941443000,-213.0,0.00028082,2]
[423218770,1779941443000,-151.0,0.00028114,2]
[423218762,1779941443000,-150.0,0.00028082,2]
[423218776,1779941443000,-894.19061325,0.00028169,2]
[423218767,1779941443000,-862.28603014,0.00028114,2]
[423218775,1779941443000,-6953.22620868,0.00028169,2]
[423218786,1779941443000,-6063.81629292,0.00028224,2]
[423218781,1779941443000,-233.54,0.00028195,7]
[423218780,1779941443000,-472.86,0.00028195,7]
[423218791,1779941443000,-1083.4,0.00028267,2]
[423218792,1779941443000,-7477.2839148,0.00028279,2]
[423218782,1779941443000,-338.12,0.00028195,7]
[423218785,1779941443000,-152.0,0.00028211,7]
[423218787,1779941443000,-1146.67928548,0.00028224,2]
[423218784,1779941443000,-152.0,0.00028211,7]
[423218783,1779941443000,-471.09,0.00028195,7]
[423218788,1779941443000,-927.27566594,0.00028224,2]
[423218790,1779941443000,-152.0,0.00028259,7]
[423218789,1779941443000,-151.0,0.00028224,2]
[423218756,1779941443000,-338.12,0.00028034,30]
[423218779,1779941443000,-338.95,0.00028195,7]
[423218758,1779941443000,-6465.89794636,0.00028059,2]
[423218725,1779941443000,-171.73,0.0002784,30]
[423218757,1779941443000,-471.09,0.00028034,30]
[423218793,1779941443000,-961.58486558,0.00028279,2]
[423218727,1779941443000,-235.9,0.00027873,2]
[423218728,1779941443000,-338.95,0.00027873,2]
[423218726,1779941443000,-173.19,0.0002784,30]
[423218730,1779941443000,-233.54,0.00027873,2]
[423218731,1779941443000,-338.12,0.00027873,2]
[423218729,1779941443000,-472.86,0.00027873,2]
[423218732,1779941443000,-471.09,0.00027873,2]
[423218733,1779941443000,-504.0,0.00027875,4]
[423218735,1779941443000,-151.0,0.00027894,2]
[423218734,1779941443000,-5798.19178837,0.00027894,2]
[423218737,1779941443000,-6012.72488454,0.00027949,2]
[423218736,1779941443000,-745.65223615,0.00027894,2]
[423218747,1779941443000,-215.50460005,0.00028,7]
[423218739,1779941443000,-773.24136889,0.00027949,2]
[423218745,1779941443000,-600.0,0.00028,2]
[423218748,1779941443000,-215.50460005,0.00028,10]
[423218738,1779941443000,-151.0,0.00027949,2]
[423218749,1779941443000,-6235.19570527,0.00028004,2]
[423218741,1779941443000,-173.19,0.00027985,2]
[423218742,1779941443000,-564.68005363,0.00028,2]
[423218740,1779941443000,-171.73,0.00027985,2]
[423218743,1779941443000,-325.0,0.00028,2]
[423218761,1779941443000,-151.0,0.00028059,2]
[423218751,1779941443000,-151.0,0.00028004,2]
[423218750,1779941443000,-801.85129954,0.00028004,2]
[423218754,1779941443000,-472.86,0.00028034,30]
[423218753,1779941443000,-338.95,0.00028034,30]
[423218752,1779941443000,-235.9,0.00028034,30]
[423218755,1779941443000,-233.54,0.00028034,30]
[423218798,1779941443000,-290.26104002,0.00028332,2]
[423218806,1779941443000,-2241.0,0.000284,2]
[423218794,1779941443000,-151.0,0.00028279,2]
[423218821,1779941443000,-168.14615243,0.00028971,2]
[423218831,1779941443000,-200.0,0.000291,2]
[423218832,1779941443000,-947.0,0.000291,2]
[423218844,1779941443000,-312.13772435,0.00029428,2]
[423218834,1779941443000,-150.0,0.0002912,2]
[423218836,1779941443000,-150.0,0.0002912,2]
[423218833,1779941443000,-150.0,0.0002912,2]
[423218835,1779941443000,-150.0,0.0002912,2]
[423218805,1779941443000,-151.0,0.00028334,2]
[423218843,1779941443000,-829.12830338,0.00029428,2]
[423218841,1779941443000,-3637.0,0.00029341,2]
[423218838,1779941443000,-928.0,0.0002926,2]
[423218842,1779941443000,-194.72792766,0.00029428,2]
[423218839,1779941443000,-1272.0,0.0002926,2]
[423218840,1779941443000,-418.0,0.00029341,2]
[423218847,1779941443000,-388.0,0.00029627,2]
[423218845,1779941443000,-1592.87721992,0.00029428,2]
[423218848,1779941443000,-1000.0,0.000297,7]
[423218849,1779941443000,-504.0,0.00029736,6]
[423218850,1779941443000,-160.0,0.00029826,30]
[423218852,1779941443000,-942.0,0.00029892,30]
[423218853,1779941443000,-160.0,0.00029892,30]
[423218855,1779941443000,-583.0,0.00029893,30]
[423218846,1779941443000,-200.0,0.00029428,2]
[423218856,1779941443000,-155.0,0.00029893,30]
[423218851,1779941443000,-374.81,0.00029889,2]
[423218854,1779941443000,-181.0,0.00029892,30]
[423218858,1779941443000,-156.0,0.00029893,30]
[423218857,1779941443000,-469.0,0.00029893,30]
[423218829,1779941443000,-201.0,0.00029,2]
[423218828,1779941443000,-156.53,0.00029,2]
[423218837,1779941443000,-156.587,0.00029153,2]
[423218825,1779941443000,-3697.57115803,0.00029,2]
[423218796,1779941443000,-214.70531978,0.00028332,2]
[423218795,1779941443000,-1747.01100406,0.00028299,2]
[423218799,1779941443000,-771.01748644,0.00028332,2]
[423218800,1779941443000,-1481.2378076,0.00028332,2]
[423218830,1779941443000,-402.77,0.000291,2]
[423218797,1779941443000,-181.08010149,0.00028332,2]
[423218803,1779941443000,-7753.94341965,0.00028334,2]
[423218802,1779941443000,-216.33728563,0.00028332,2]
[423218801,1779941443000,-200.0,0.00028332,2]
[423218807,1779941443000,-1853.61533197,0.00028579,2]
[423218812,1779941443000,-150.0,0.00028855,2]
[423218810,1779941443000,-155.36,0.00028845,2]
[423218808,1779941443000,-500.0,0.00028768,7]
[423218818,1779941443000,-1536.04360648,0.0002888,2]
[423218804,1779941443000,-974.847965,0.00028334,2]
[423218819,1779941443000,-200.0,0.0002888,2]
[423218826,1779941443000,-701.8955,0.00029,2]
[423218809,1779941443000,-504.0,0.00028805,5]
[423218822,1779941443000,-272.09,0.00029,2]
[423218827,1779941443000,-2480.74217623,0.00029,2]
[423218823,1779941443000,-161.27,0.00029,2]
[423218820,1779941443000,-150.0,0.00028897,2]
[423218824,1779941443000,-6302.42884197,0.00029,2]
[423218814,1779941443000,-152.0,0.00028859,7]
[423218815,1779941443000,-187.78006524,0.0002888,2]
[423218811,1779941443000,-150.0,0.00028855,2]
[423218813,1779941443000,-150.0,0.00028855,2]
[423218817,1779941443000,-799.54513344,0.0002888,2]
[423218816,1779941443000,-301.0006985,0.0002888,2]
[423218872,1779941444000,-4497.31657424,0.000297,2]
[423218874,1779941444000,-928.0,0.000299,2]
[423218875,1779941444000,-1000.0,0.000299,2]
[423218879,1779941444000,-859.8060506,0.00029976,2]
[423218880,1779941444000,-323.68682015,0.00029976,2]
[423218877,1779941444000,-248.20077102,0.00029966,2]
[423218873,1779941444000,-272.35146036,0.000299,2]
[423218876,1779941444000,-407.0,0.00029918,2]
[423218871,1779941444000,-633.53258715,0.00024942,7]
[423218869,1779941444000,-1411.16258715,0.0002374,2]
[423218864,1779941444000,-732.809953,0.00022,2]
[423218867,1779941444000,-4200.49577453,0.0002374,2]
[423218868,1779941444000,-452.34163832,0.0002374,2]
[423218866,1779941444000,-4115.79302827,0.00022,2]
[423218863,1779941444000,-162.0,0.0002,2]
[423218861,1779941444000,-160.0,0.00029893,30]
[423218862,1779941444000,-6317.15469043,0.000299,2]
[423218860,1779941444000,-1056.0,0.00029893,30]
[423218859,1779941444000,-151.0,0.00029893,30]
[423218878,1779941444000,-201.93286098,0.00029976,2]
[423218870,1779941444000,-775.05741285,0.00024942,7]
[423218882,1779941444000,-200.0,0.00029976,2]
[423218865,1779941444000,-426.95701873,0.00022,2]
[423218881,1779941444000,-1651.81367706,0.00029976,2]
[423218905,1779941444000,-150.0,0.00030341,2]
[423218900,1779941444000,-507.96,0.00030137,2]
[423218904,1779941444000,-1083.4,0.00030239,2]
[423218899,1779941444000,-205.29816039,0.0003013,2]
[423218903,1779941444000,-500.0,0.00030137,7]
[423218901,1779941444000,-200.0,0.00030137,2]
[423218902,1779941444000,-4371.0,0.00030137,120]
[423218896,1779941444000,-200.0,0.0003,2]
[423218893,1779941444000,-200.0,0.0003,2]
[423218894,1779941444000,-200.0,0.0003,2]
[423218895,1779941444000,-200.0,0.0003,2]
[423218892,1779941444000,-650.0,0.0003,2]
[423218898,1779941444000,-645.34126049,0.0003013,2]
[423218890,1779941444000,-1000.0,0.0003,2]
[423218884,1779941444000,-5000.0,0.00029983,2]
[423218888,1779941444000,-1123.64335598,0.0003,2]
[423218885,1779941444000,-241.28891844,0.0002999,2]
[423218891,1779941444000,-165.92266475,0.0003,2]
[423218889,1779941444000,-1850.09781255,0.0003,2]
[423218886,1779941444000,-3000.0,0.0003,3]
[423218883,1779941444000,-10000.0,0.00029983,2]
[423218887,1779941444000,-6536.55755342,0.0003,2]
[423218897,1779941444000,-1092.81524815,0.0003013,2]
[423218955,1779941445000,-200.0,0.00031072,2]